[Event "Susha Chess Rapid 2022"]
[Site "Shusha"]
[Date "2022.09.22"]
[Round "4.1"]
[White "Yilmaz, Mustafa"]
[Black "Kasimdzhanov, Rustam"]
[Result "1/2-1/2"]
[ECO "D30"]
[WhiteElo "2633"]
[BlackElo "2670"]
[Annotator "TA"]
[PlyCount "56"]
[EventDate "2022.09.21"]
[EventType "tourn"]
[EventCountry "AZE"]
[SourceTitle "playchess.com"]
[Source "ChessBase"]
[SourceQuality "1"]
[TimeControl "900+10"]

{[%evp 15,56,33,35,25,60,34,52,39,42,9,25,16,27,27,52,42,36,42,66,16,41,17,33,25,20,17,24,13,31,3,4,6,8,0,0,0,10,0,0,0,0,0,0]} 1. d4 {[%emt 0:00:02]} d5 {[%emt 0:00:00]} 2. c4 {[%emt 0:00:01]} e6 {[%emt 0:00:01]} 3. Nf3 {[%emt 0:00:03]} c5 {[%emt 0:00:00]} 4. cxd5 {[%emt 0:00:05]} exd5 {[%emt 0:00:02]} 5. g3 {[%emt 0:00:03]} Nf6 {[%emt 0:00:01]} 6. Bg2 {[%emt 0:00:01]} Be7 {[%emt 0:00:00]} 7. O-O {[%emt 0:00:05]} O-O {[%emt 0:00:01]} 8. dxc5 {[%emt 0:02:36]} Bxc5 {[%emt 0:00:02]} 9. a3 {[%emt 0:00:08] D30: Queen's Gambit Declined: Systems without Nc3.} h6 {[%emt 0:00:02]} 10. b4 {[%emt 0:00:19] [#]} Bd6 $146 {[%emt 0:00:03]} ({Predecessor:} 10... Bb6 11. Bb2 Nc6 12. Nc3 Re8 13. Rc1 Be6 14. Na4 Ne4 15. Nxb6 Qxb6 {½-½ (40) Carstensen,J (2383)-Golubka,P (2397) Vaxjo 2014}) 11. Nc3 {[%emt 0:01:00] White is slightly better.} a5 {[%emt 0:00:11]} 12. bxa5 {[%emt 0:00:23]} ({Of course not} 12. Nxd5 axb4 13. Ne3 Nc6 $11) 12... Qxa5 {[%emt 0:01:56]} 13. Bd2 {[%emt 0:00:09][%cal Oc3e4] Black must now prevent Ne4!} Qd8 {[%emt 0:00:39]} 14. Qb3 {[%emt 0:01:27]} Nc6 {[%emt 0:00:54]} 15. Nxd5 {[%emt 0:02:05]} Nxd5 {[%emt 0:00:21]} 16. Qxd5 {[%emt 0:00:02]} Rxa3 {[%emt 0:00:05]} 17. Rad1 {[%emt 0:02:57]} (17. Rxa3 $14 Bxa3 18. Qb5) 17... Be7 {[%emt 0:00:37]} 18. Qb5 {[%emt 0:00:25][%cal Od2b4] Threatening Bb4!} Qc7 {[%emt 0:01:15]} 19. Bf4 {[%emt 0:00:02]} Qa5 {[%emt 0:00:12]} 20. Qxa5 {[%emt 0:00:01]} Nxa5 {[%emt 0:00:16]} 21. Nd4 {[%emt 0:00:09]} Ra4 {[%emt 0:00:20]} 22. Ra1 {[%emt 0:01:15]} Rxd4 {[%emt 0:01:40] The position is equal.} 23. Rxa5 {[%emt 0:00:02]} b6 {[%emt 0:00:51][%cal Bb7b6,Bb6c5,Bc5d4][%mdl 32]} 24. Rb5 {[%emt 0:00:24]} Bc5 {[%emt 0:00:44]} 25. Be3 {[%emt 0:00:21]} Ba6 {[%emt 0:00:31]} 26. Rxc5 {[%emt 0:00:36]} bxc5 {[%emt 0:00:02]} 27. Bxd4 {[%emt 0:00:01]} cxd4 {[%emt 0:00:01]} 28. Rd1 {[%emt 0:00:02]} Bxe2 {[%emt 0:00:00] Weighted Error Value: White=0.14 (very precise) /Black=0.09 (flawless)} 1/2-1/2

[Event "Susha Chess Rapid 2022"]
[Site "Shusha"]
[Date "2022.09.22"]
[Round "4.3"]
[White "Maghsoodloo, Parham"]
[Black "Mamedyarov, Shakhriyar"]
[Result "0-1"]
[ECO "C83"]
[WhiteElo "2721"]
[BlackElo "2757"]
[Annotator "TA"]
[PlyCount "138"]
[EventDate "2022.09.21"]
[EventType "tourn"]
[EventCountry "AZE"]
[SourceTitle "playchess.com"]
[Source "ChessBase"]
[SourceQuality "1"]
[TimeControl "900+10"]

{[%evp 21,138,20,36,24,29,13,22,14,22,2,2,25,4,5,26,35,50,8,15,16,9,10,20,10,7,8,10,8,6,6,8,13,9,9,9,6,47,-22,-18,-23,-10,-7,-7,-10,-9,-9,-7,-7,0,-12,0,-7,-15,-12,-15,-37,-38,-66,-60,-187,-195,-195,-179,-123,-133,-263,-270,-270,-268,-258,-270,-505,-254,-359,-354,-280,-159,-161,-152,-138,-136,-635,-624,-333,-879,-811,-693,-556,-487,-1308,-1289,-12838,-12836,-12845,-12846,-12849,-12849,-12850,-12850,-12850,-27999,-27999,-27998,-27999,-27999,-27999,-27999,-27999,-27999,-27999,-27999,-27995,-27995,-27996,-27996,-27997,-27997,-27998,-27998]} 1. e4 {[%emt 0:00:03]} e5 {[%emt 0:00:01]} 2. Nf3 {[%emt 0:00:01]} Nc6 {[%emt 0:00:01]} 3. Bb5 {[%emt 0:00:02]} a6 {[%emt 0:00:01]} 4. Ba4 {[%emt 0:00:01]} Nf6 {[%emt 0:00:01]} 5. O-O {[%emt 0:00:03]} Nxe4 {[%emt 0:00:02]} 6. d4 {[%emt 0:00:01]} b5 {[%emt 0:00:01]} 7. Bb3 {[%emt 0:00:02]} d5 {[%emt 0:00:01]} 8. dxe5 {[%emt 0:00:02]} Be6 {[%emt 0:00:01]} 9. c3 {[%emt 0:00:15]} Be7 {[%emt 0:00:02]} 10. Be3 {[%emt 0:00:06]} Qd7 {[%emt 0:00:24]} 11. Nbd2 {[%emt 0:00:02]} Rd8 {[%emt 0:00:03]} 12. Re1 {[%emt 0:01:18] C83: Open Ruy Lopez: 9 c3 Be7.} O-O {[%emt 0:00:16]} 13. h3 {[%emt 0:00:40]} Nxd2 {[%emt 0:00:42]} 14. Qxd2 {[%emt 0:00:11] The position is equal.} Na5 {[%emt 0:00:01] [#]} 15. Bc2 $146 {[%emt 0:00:26]} ({Predecessor:} 15. Bg5 c5 16. Bc2 Bxg5 17. Nxg5 Bf5 18. g4 Nc4 19. Qc1 Be4 20. Nxe4 dxe4 21. Bxe4 {½-½ (76) Short,N (2500)-Jussupow,A (2570) Thessaloniki 1984}) 15... Nc4 {[%emt 0:00:03][%csl LRb2,LRd2]} 16. Qd3 {[%emt 0:00:02][%csl Gc2][%cal Rd3h7]} g6 {[%emt 0:00:01]} 17. Bc1 {[%emt 0:01:28]} c5 {[%emt 0:00:25]} 18. b3 {[%emt 0:00:47]} Na5 {[%emt 0:01:06]} 19. Bg5 {[%emt 0:00:09]} (19. Qe3 $5 {[%cal Re3h6]}) 19... Bf5 {[%emt 0:03:20]} (19... d4 {keeps more tension.} 20. Qe4 Bxg5 21. Nxg5 h6) 20. Qd2 {[%emt 0:00:02] Strongly threatening Bxf5.} Bxc2 {[%emt 0:00:02]} 21. Qxc2 {[%emt 0:00:01]} Nc6 {[%emt 0:00:08]} 22. Rad1 {[%emt 0:00:04]} Rfe8 {[%emt 0:00:10]} 23. Qd2 {[%emt 0:00:51]} d4 {[%emt 0:02:09]} 24. Qf4 {[%emt 0:02:02]} Qf5 $1 {[%emt 0:01:35]} 25. Qxf5 {[%emt 0:00:42]} gxf5 {[%emt 0:00:02]} 26. Bxe7 {[%emt 0:01:12]} Rxe7 {[%emt 0:00:04]} 27. cxd4 {[%emt 0:00:01]} Nxd4 {[%emt 0:00:05]} 28. Kf1 {[%emt 0:00:23]} Red7 {[%emt 0:02:04]} 29. Nh4 {[%emt 0:00:49]} ({White should try} 29. Nxd4 $14 cxd4 30. Ke2) 29... f4 $11 {[%emt 0:00:42]} 30. Re4 {[%emt 0:01:33]} Ne6 {[%emt 0:01:06]} 31. Rxd7 {[%emt 0:00:08]} Rxd7 {[%emt 0:00:01][%mdl 4096] Endgame KRN-KRN} 32. Nf5 {[%emt 0:00:02]} Rd1+ {[%emt 0:01:26]} 33. Re1 $1 {[%emt 0:00:02]} Rd2 {[%emt 0:00:05]} 34. Re2 $1 {[%emt 0:00:01]} Rd1+ {[%emt 0:00:10]} 35. Re1 {[%emt 0:00:01]} Rd2 {[%emt 0:00:36]} 36. Re2 $1 {[%emt 0:00:02]} Rd3 {[%emt 0:00:49]} 37. f3 {[%emt 0:01:29]} Kf8 {[%emt 0:00:06]} 38. Ke1 {[%emt 0:00:01]} Rd5 {[%emt 0:00:07]} 39. Nd6 {[%emt 0:02:14]} Nd4 {[%emt 0:01:22]} ({Resist} 39... f6 40. Ne4 $14) 40. Re4 {[%emt 0:00:02]} (40. Rd2 $1 $15) 40... f5 $1 $19 {[%emt 0:00:55]} 41. Rxf4 {[%emt 0:00:03]} Rxe5+ {[%emt 0:00:01]} 42. Kf2 {[%emt 0:01:30]} (42. Kf1 $19) 42... Rd5 $1 $17 {[%emt 0:00:30]} 43. Nb7 {[%emt 0:02:15]} (43. Nc8 $17 {was the only defense.}) 43... Ne6 $19 {[%emt 0:00:02]} 44. Rh4 {[%emt 0:00:01]} Kg7 {[%emt 0:00:01] Prevents Rh6.} 45. Ke3 {[%emt 0:00:33]} Kg6 {[%emt 0:00:58]} 46. a4 $2 {[%emt 0:00:46]} (46. g3 {was necessary.}) 46... h6 {[%emt 0:00:23]} 47. axb5 {[%emt 0:00:04]} (47. g3 $142) 47... axb5 {[%emt 0:00:01]} 48. g3 {[%emt 0:00:20]} Kg5 {[%emt 0:00:44]} ({Don't go for} 48... Nd4 $2 49. Na5 $19) (48... h5 $19 {White must now prevent ...Rd7.} 49. g4 hxg4 50. hxg4 f4+ 51. Kf2 Rd2+ 52. Ke1 Rd7) 49. f4+ $17 {[%emt 0:00:09]} Kg6 {[%emt 0:00:01]} 50. g4 {[%emt 0:00:02]} Nd4 {[%emt 0:00:04]} 51. Rh5 $2 {[%emt 0:00:22][%mdl 8192]} (51. Na5 $17) 51... Nxb3 $19 {[%emt 0:00:24]} 52. Rxf5 {[%emt 0:00:01]} Rxf5 {[%emt 0:00:01]} 53. gxf5+ {[%emt 0:00:01] KN-KN} Kf6 {[%emt 0:00:02]} 54. Nd6 {[%emt 0:00:27]} b4 {[%emt 0:00:06] Threatens to win with ...Na5.} 55. Kd3 {[%emt 0:00:11]} (55. Ke4 $142 Nd4 56. Nc4) 55... Na5 {[%emt 0:00:09]} 56. Ne4+ {[%emt 0:00:01]} Kxf5 {[%emt 0:00:00]} 57. Nxc5 {[%emt 0:00:01]} Kxf4 {[%emt 0:00:03]} 58. Kd4 {[%emt 0:00:24]} Kg3 {[%emt 0:00:07]} 59. Nd3 {[%emt 0:00:02]} b3 {[%emt 0:00:06]} 60. Kc3 {[%emt 0:00:05]} Kxh3 {[%emt 0:00:02]} 61. Kb4 {[%emt 0:00:00] Black mates.} Nc6+ {[%emt 0:00:25]} 62. Kxb3 {[%emt 0:00:16] [#]} Kg3 $1 {[%emt 0:00:01]} 63. Kc3 {[%emt 0:00:06]} h5 {[%emt 0:00:02][%cal Bh6h5,Bh5h4,Bh4h3,Bh3h2][%mdl 32]} 64. Kd2 {[%emt 0:00:01]} h4 {[%emt 0:00:06]} 65. Ke2 {[%emt 0:00:02]} h3 {[%emt 0:00:05]} 66. Kf1 {[%emt 0:00:02]} h2 {[%emt 0:00:03]} 67. Nf2 {[%emt 0:00:01] [#]} Kf3 $1 {[%emt 0:00:17]} 68. Nh1 {[%emt 0:00:13]} Nd4 {[%emt 0:00:06]} 69. Nf2 {[%emt 0:00:08]} Nf5 {[%emt 0:00:01] Weighted Error Value: White=0.58/Black=0.10 (very precise)} 0-1

[Event "Susha Chess Rapid 2022"]
[Site "Shusha"]
[Date "2022.09.22"]
[Round "4.4"]
[White "Radjabov, Teimour"]
[Black "Durarbayli, Vasif"]
[Result "0-1"]
[ECO "A05"]
[WhiteElo "2747"]
[BlackElo "2628"]
[Annotator "TA"]
[PlyCount "50"]
[EventDate "2022.09.21"]
[EventType "tourn"]
[EventCountry "AZE"]
[SourceTitle "playchess.com"]
[Source "ChessBase"]
[SourceQuality "1"]
[TimeControl "900+10"]

{[%evp 16,50,14,14,13,0,21,0,0,0,0,0,0,0,17,0,0,0,0,-18,-9,-38,-60,-148,-91,-200,-209,-205,-191,-249,-241,-242,-198,-397,-395,-3531,-3075]} 1. Nf3 {[%emt 0:00:02]} Nf6 {[%emt 0:00:08]} 2. c4 {[%emt 0:00:03]} e6 {[%emt 0:00:04]} 3. Nc3 {[%emt 0:00:02]} c5 {[%emt 0:00:01]} 4. e3 {[%emt 0:00:14]} Nc6 {[%emt 0:00:45]} 5. d4 {[%emt 0:00:02]} d5 {[%emt 0:00:01]} 6. cxd5 {[%emt 0:00:03]} exd5 {[%emt 0:00:26]} 7. Bb5 {[%emt 0:00:02]} cxd4 $1 {[%emt 0:00:01][%mdl 4] outshines the older 7...Bd6.} 8. Nxd4 {[%emt 0:00:06]} Bd7 {[%emt 0:00:01]} 9. O-O {[%emt 0:00:07]} Bd6 {[%emt 0:00:51] D32: Tarrasch Defence: Sidelines and lines without g3.} 10. Nf3 {[%emt 0:00:04]} a6 {[%emt 0:00:27]} 11. Be2 {[%emt 0:00:08]} (11. Bxc6 $5 Bxc6 12. b3 $11) 11... Be6 {[%emt 0:00:15] The position is equal.} 12. b3 {[%emt 0:00:09]} O-O {[%emt 0:00:29]} 13. Bb2 {[%emt 0:00:04]} Rc8 {[%emt 0:00:19]} 14. Rc1 {[%emt 0:00:04]} Qe7 {[%emt 0:00:01] [#]} 15. Nd4 $146 {[%emt 0:03:07]} ({Predecessor:} 15. Na4 Nb4 16. Rxc8 Rxc8 17. Nc3 Nc6 18. g3 Bc5 19. Ng5 Rd8 20. Nxe6 Qxe6 21. Bf3 {½-½ (37) Nihal,S (2572)-Bellaiche,A (2453) Douglas 2018}) 15... Be5 {[%emt 0:02:10]} 16. Nf3 {[%emt 0:02:03]} Bb8 {[%emt 0:00:38]} 17. Qd3 {[%emt 0:01:00]} Rfe8 {[%emt 0:01:18]} 18. Rfd1 {[%emt 0:00:49]} (18. Nd4 {keeps more tension.} Qd6 19. g3 Bh3 20. Rfd1) 18... Rcd8 {[%emt 0:00:51]} 19. Qb1 {[%emt 0:01:12] [#]} ({White should play} 19. g3 $15) 19... Bg4 {[%emt 0:01:15]} ({Better is} 19... Ng4 $1 {[%cal Od5d4] Threatens to win with ...d4!} 20. h3 Nge5) 20. Nd4 {[%emt 0:03:22]} (20. Re1 $17) 20... Qe5 $19 {[%emt 0:02:28]} 21. g3 {[%emt 0:00:14] And now Nxc6 would win.} Qh5 {[%emt 0:00:01]} 22. Qc2 {[%emt 0:01:22]} (22. Rc2 $142) 22... Nxd4 {[%emt 0:01:16]} 23. Rxd4 {[%emt 0:00:01]} Ba7 {[%emt 0:00:00]} 24. Rd2 {[%emt 0:00:47]} (24. Rf4) 24... d4 {[%emt 0:00:16][%cal Bd5d4,Bd4e3][%mdl 32]} 25. Rcd1 $2 {[%emt 0:03:12] [#]} (25. exd4 Rxd4 26. Rxd4 Bxd4 27. h4) 25... dxe3 $1 {[%emt 0:00:36] Weighted Error Value: White=0.75/Black=0.08 (flawless)} 0-1

[Event "Susha Chess Rapid 2022"]
[Site "Shusha"]
[Date "2022.09.22"]
[Round "4.5"]
[White "Wang, Hao"]
[Black "Guseinov, Gadir"]
[Result "1-0"]
[ECO "B67"]
[WhiteElo "2722"]
[BlackElo "2661"]
[Annotator "TA"]
[PlyCount "127"]
[EventDate "2022.09.21"]
[EventType "tourn"]
[EventCountry "AZE"]
[SourceTitle "playchess.com"]
[Source "ChessBase"]
[SourceQuality "1"]
[TimeControl "900+10"]

{[%evp 17,127,6,20,13,22,34,38,28,57,31,77,48,104,95,107,95,146,143,145,135,140,121,108,114,147,88,81,75,77,86,80,84,76,80,94,94,94,94,90,66,79,56,45,50,82,63,75,0,114,41,48,48,118,125,126,118,109,109,143,98,287,247,630,606,911,13,13,13,13,20,20,20,20,20,21,21,961,900,563,451,12831,12829,12837,12838,12843,12822,12816,0,12843,12829,12830,12832,12833,12830,12831,12828,9412,0,12827,12816,12833,12833,12833,12831,12831,12831,12830,12832,12825,12120,12847,12847]} 1. e4 {[%emt 0:00:02]} c5 {[%emt 0:00:02]} 2. Nf3 {[%emt 0:00:01]} d6 {[%emt 0:00:01]} 3. d4 {[%emt 0:00:02]} cxd4 {[%emt 0:00:02]} 4. Nxd4 {[%emt 0:00:01]} Nf6 {[%emt 0:00:01]} 5. Nc3 {[%emt 0:00:02]} Nc6 {[%emt 0:00:01]} 6. Bg5 {[%emt 0:00:02]} e6 {[%emt 0:00:03]} 7. Qd2 {[%emt 0:00:02]} a6 {[%emt 0:00:21]} 8. O-O-O Bd7 9. Nxc6 {[%emt 0:00:09]} Bxc6 {[%emt 0:00:37]} 10. f3 {[%emt 0:00:02] B67: Sicilian: Richter-Rauzer: 7...a6 8 0-0-0 Bd7, lines without 9 f4 Be7.} Be7 {[%emt 0:00:12] 10...h6 deserves study.} 11. h4 {[%emt 0:00:05]} Qa5 {[%emt 0:00:26]} 12. Kb1 {[%emt 0:00:06] White is slightly better.} Rc8 {[%emt 0:01:24] [#]} 13. Bd3 $146 {[%emt 0:00:51]} ({Predecessor:} 13. h5 h6 14. Bh4 b5 15. a3 Qc7 16. Bd3 O-O 17. g4 Rb8 18. g5 Nh7 19. gxh6 Bxh4 20. hxg7 {1-0 (30) Bindrich,F (2391)-Walek,M (2374) Czech Republic 2005}) 13... h6 {[%emt 0:04:05]} (13... h5 $14) 14. Be3 $16 {[%emt 0:00:03]} Qc7 {[%emt 0:00:39]} (14... h5 $14) 15. g4 $1 {[%emt 0:00:22] White is more active.} Nd7 {[%emt 0:00:13]} 16. g5 {[%emt 0:00:13]} hxg5 {[%emt 0:00:59]} (16... h5 $142) 17. hxg5 {[%emt 0:00:16]} Rxh1 {[%emt 0:00:04]} 18. Rxh1 Ne5 19. Be2 {[%emt 0:00:09]} b5 {[%emt 0:00:07]} 20. f4 {[%emt 0:00:53]} b4 {[%emt 0:00:27]} 21. Nd5 {[%emt 0:00:32]} (21. fxe5 bxc3 22. Qxc3 Bxe4 23. Rh8+ Kd7 24. Rxc8 Qxc8 $16) (21. Rh8+ $142 Kd7 22. Rxc8 Qxc8 23. Nd1 (23. fxe5 bxc3 24. Qxc3 Bb7 $16)) 21... Bxd5 {[%emt 0:01:07]} 22. exd5 {[%emt 0:00:03]} Nc4 {[%emt 0:00:00]} 23. Bxc4 {[%emt 0:01:17]} (23. Rh8+ Kd7 24. Bxc4 (24. dxe6+ $2 fxe6 25. Bxc4 Rxh8 $19) 24... Rxh8 25. Qxb4 Rh1+ 26. Bc1 Kd8 $11) 23... Qxc4 {[%emt 0:00:01]} 24. dxe6 {[%emt 0:00:09]} fxe6 {[%emt 0:00:08]} 25. Re1 {[%emt 0:02:58]} Qe4 {[%emt 0:01:39] [#]} 26. Bc5 $1 {[%emt 0:04:16][%cal Be3c5,Bc5b4,Bb4c3][%mdl 32]} Qf5 {[%emt 0:00:03]} 27. Bxb4 {[%emt 0:01:20] b3 is the strong threat.} Rc4 {[%emt 0:00:05]} 28. Bc3 {[%emt 0:00:47]} (28. Bxd6 $2 Bxd6 29. Qe2 (29. Qxd6 $2 {is a self mate.} Qxc2+ 30. Ka1 Qc1+ 31. Rxc1 Rxc1#) 29... Rxf4 30. Qxa6 Qd5 $17) 28... Rxf4 {[%emt 0:00:33] [#]} 29. Rxe6 $1 {[%emt 0:00:37] Black must now prevent Qe3.} Rf1+ {[%emt 0:01:00]} 30. Re1 {[%emt 0:00:02]} Rxe1+ $1 {[%emt 0:00:05]} 31. Qxe1 {[%emt 0:00:02]} Qxg5 $14 {[%emt 0:00:10][%mdl 4096] Endgame KQB-KQB} 32. a4 {[%emt 0:00:02]} ({White should play} 32. b4 $16) 32... Qg4 {[%emt 0:02:29]} (32... Qg2 $1 $11) 33. a5 {[%emt 0:00:13]} (33. b3 $1 $16) 33... d5 {[%emt 0:00:27]} 34. Qd2 {[%emt 0:02:07]} Qc4 {[%emt 0:02:37]} (34... Qg1+ $14 35. Ka2 Qg6) 35. Bxg7 $16 {[%emt 0:00:32]} Bb4 {[%emt 0:00:01]} 36. Qe3+ {[%emt 0:01:58]} Kf7 {[%emt 0:00:02]} 37. Qa7+ Kg6 38. Qg1+ {[%emt 0:00:08]} Kf5 $2 {[%emt 0:00:58]} (38... Kf7 $16 39. Be5 Ke6) 39. b3 {[%emt 0:00:12]} Qg4 {[%emt 0:00:13]} (39... Qc6 40. Qg3 Bxa5 41. Qh3+ Kg5 42. Qg2+ Kh4 43. Qh2+ Kg5 44. Qg3+ Kh5 45. Qh3+ Kg5 46. Qg3+ Kh5 47. Qh3+ Kg5) 40. Qf1+ $18 {[%emt 0:00:12]} Kg6 {[%emt 0:00:09] [#]} 41. Bf8 {[%emt 0:00:43]} (41. Bc3 $1 $18 {[%mdl 512]} Bxc3 42. Qd3+ Kf7 43. Qxc3) 41... Bxf8 $11 {[%emt 0:00:15]} 42. Qxf8 {[%emt 0:00:03] KQ-KQ} Qd1+ {[%emt 0:00:09]} 43. Kb2 Qd4+ {[%emt 0:00:02]} 44. Ka2 {[%emt 0:00:05]} Qc3 $1 {[%emt 0:00:16][%csl LRa5,LRc2]} 45. Qd6+ {[%emt 0:00:03]} Kg7 {[%emt 0:00:05]} 46. Qd7+ {[%emt 0:00:31]} ({Don't take} 46. Qxd5 $6 Qxc2+ 47. Ka3 Qc1+ 48. Kb4 Qf4+ 49. Kc5 Qc7+ 50. Kd4 Qf4+ 51. Kd3 Qg3+ 52. Ke4 Qh4+ 53. Kd3 Qh6 $16) 46... Kf6 $2 {[%emt 0:00:13][%mdl 8192] [#] Black is on the road to losing.} (46... Kh6 $11) 47. Qd8+ $1 $18 {[%emt 0:00:23]} Ke6 {[%emt 0:00:06]} 48. Qb6+ {[%emt 0:00:02]} Ke5 {[%emt 0:00:06] [#]} (48... Kf5 $142 49. Kb1 (49. Qxa6 Qxc2+ 50. Ka3 Qc5+ 51. Ka4 Qd4+ 52. b4 Qd1+ 53. Kb5 Qe2+ 54. Kb6 Qe3+ 55. Kc6 Qe6+ 56. Kb7 Qe7+ 57. Kb8 Qxb4+ 58. Kc7 Qe7+ 59. Kc8 Qf8+ 60. Kd7 Qg7+ 61. Kd8 Qf8+ 62. Kc7 Qe7+ 63. Kc8 Qf8+ 64. Kd7 Qg7+ 65. Kd8 Qf8+ 66. Kd7 $11) 49... Qe1+ 50. Kb2 Qe5+ 51. Ka3 Qe7+ 52. Ka2 Qe4) 49. Kb1 $1 {[%emt 0:00:05]} Qc8 {[%emt 0:00:19]} 50. Qe3+ {[%emt 0:00:09]} Kd6 {[%emt 0:00:06]} 51. Qh6+ {[%emt 0:00:06]} Ke5 {[%emt 0:00:08]} 52. Qe3+ {[%emt 0:00:16]} Kd6 {[%emt 0:00:02]} 53. Kb2 {[%emt 0:00:04]} Qh8+ {[%emt 0:00:11]} 54. c3 {[%emt 0:00:02]} Qc8 {[%emt 0:00:10]} 55. Qb6+ {[%emt 0:00:08]} Kd7 {[%emt 0:00:16]} 56. Qa7+ {[%emt 0:00:34]} Kd6 {[%emt 0:00:05]} 57. Qb6+ {[%emt 0:00:03]} Kd7 $1 {[%emt 0:00:01]} 58. Kc2 {[%emt 0:00:05] White is clearly winning.} Ke7 {[%emt 0:00:06]} 59. Qe3+ {[%emt 0:00:07]} Kd6 {[%emt 0:00:06]} 60. Qh6+ Ke5 {[%emt 0:00:45]} 61. Qg5+ {[%emt 0:00:17]} Ke4 {[%emt 0:00:07]} 62. Qf6 {[%emt 0:00:17]} Qb7 {[%emt 0:00:10]} 63. Qb6 {[%emt 0:00:15]} Qh7 {[%emt 0:00:07]} 64. Qd4+ {[%emt 0:00:09] Weighted Error Value: White=0.46/Black=0.37} 1-0